bitfinex/quotes_ETHUSD_20260213
["timestamp","ask_amount","ask_price","bid_price","bid_amount"]
[1770975096649,2.073,1964.9,1964.6,0.001]
[1770975096650,3.34533538,1964.9,1964.6,0.001]
[1770975097219,2.073,1964.9,1964.6,0.4766791]
[1770975097438,3.34533052,1964.9,1964.6,0.4766791]
[1770975097654,0.002,1965.4,1964.7,0.4756791]
[1770975097953,3.82601956,1965.4,1964.6,1.74916834]
[1770975098113,3.82601956,1965.4,1964.6,1.27348924]
[1770975098319,2.078,1965.4,1964.7,0.4756791]
[1770975099238,3.35001,1965.4,1964.7,0.4756791]
[1770975099545,3.82599545,1965.4,1964.7,0.4756791]
[1770975099948,3.82599545,1965.4,1964.7,1.7480869]
[1770975100749,3.82599545,1965.4,1964.7,1.2724078]
[1770975101848,2.078,1965.4,1964.8,0.4756791]
[1770975102052,3.35001313,1965.4,1964.8,1.74801969]
[1770975102244,3.35001313,1965.4,1964.8,1.27234059]
[1770975102644,2.076,1965.3,1964.9,0.4756791]
[1770975103026,2.076,1965.3,1964.8,1.27234059]
[1770975103853,2.076,1965.3,1964.9,0.4756791]
[1770975104072,2.076,1965.3,1965.1,0.4756791]
[1770975104226,0.002,1965.4,1965.1,0.4756791]
[1770975104570,2.075,1965.4,1965.0,1.74794373]
[1770975105370,2.075,1965.4,1964.9,1.27227668]
[1770975105577,2.075,1965.4,1964.8,1.74802304]
[1770975106268,3.34701674,1965.4,1964.8,1.74802304]
[1770975107977,2.075,1965.4,1964.8,1.74802304]
[1770975108347,3.3470153,1965.4,1964.8,1.74802304]
[1770975108868,2.075,1965.4,1964.9,0.4756791]
[1770975109579,0.002,1965.3,1964.9,0.4756791]
[1770975109765,0.002,1965.3,1964.7,1.74908855]
[1770975110081,0.002,1965.3,1964.7,0.4766791]
[1770975110858,0.47798605,1965.3,1964.7,0.001]
[1770975112287,2.072,1965.2,1964.7,0.001]
[1770975112450,3.3441361,1965.2,1964.7,0.001]
[1770975114858,3.82012215,1965.2,1964.7,0.001]
[1770975115081,0.47598605,1965.1,1964.7,0.001]
[1770975116897,1.27226463,1965.0,1964.7,0.001]
[1770975117270,0.002,1965.3,1964.7,0.4766791]
[1770975117589,2.996,1965.2,1964.7,0.4766791]
[1770975117761,2.996,1965.2,1964.7,0.001]
[1770975117961,0.47598605,1965.1,1964.7,0.001]
[1770975120663,1.74822454,1965.1,1964.7,0.001]
[1770975120990,1.27223849,1965.1,1964.7,0.001]
[1770975121577,1.74929156,1965.1,1964.7,0.001]
[1770975121764,0.47705307,1965.0,1964.7,0.001]
[1770975121970,0.47705307,1965.0,1964.8,0.001]
[1770975122164,1.27223849,1965.1,1964.8,0.001]
[1770975122385,1.74929156,1965.1,1964.8,0.001]
[1770975123864,0.917,1965.0,1964.8,0.001]
[1770975125194,1.39405307,1965.0,1964.8,0.001]
[1770975125396,0.47705307,1964.8,1964.6,0.001]
[1770975125599,2.56505307,1964.7,1964.1,0.49481302]
[1770975125777,2.56505307,1964.7,1964.0,1.7676763]
[1770975126377,0.47705307,1964.6,1963.9,0.001]
[1770975127406,0.47705307,1964.4,1963.9,0.001]
[1770975127709,3.005,1964.3,1963.9,0.001]
[1770975128089,0.47705307,1964.2,1963.9,0.001]
[1770975129506,1.27284761,1964.1,1963.9,0.001]
[1770975130173,4.27772615,1964.3,1963.9,0.001]
[1770975132005,3.005,1964.3,1963.9,0.001]
[1770975133303,3.005,1964.3,1963.9,0.49581302]
[1770975133497,4.27772198,1964.3,1963.9,0.001]
[1770975134506,4.27772198,1964.3,1964.0,0.001]
[1770975135512,3.005,1964.3,1964.0,0.001]
[1770975136308,4.27771897,1964.3,1964.0,0.001]
[1770975138210,3.005,1964.3,1964.0,0.001]
[1770975140121,3.005,1964.3,1964.0,0.49581302]
[1770975140588,3.005,1964.3,1964.0,0.001]
[1770975141310,4.27771899,1964.3,1964.0,0.001]
[1770975142728,3.005,1964.3,1964.0,0.001]
[1770975143936,2.088,1964.5,1964.1,0.49481302]
[1770975144919,2.088,1964.5,1964.3,0.49481302]
[1770975145504,0.002,1964.6,1964.4,0.49481302]
[1770975146820,0.002,1964.6,1964.5,1.27258844]
[1770975147801,0.002,1964.6,1964.5,0.49481302]
[1770975149223,0.002,1964.6,1964.5,1.76740146]
[1770975149412,2.07155578,1964.7,1964.5,1.27258844]
[1770975150121,2.07155578,1964.7,1964.5,1.76740146]
[1770975150307,0.918,1964.9,1964.6,0.49481302]
[1770975150308,3.001,1964.9,1964.6,0.49481302]
[1770975151214,2.082,1965.2,1964.7,1.27245889]
[1770975151521,2.082,1965.2,1964.5,0.49424313]
[1770975153402,2.082,1965.2,1964.7,0.49424313]
[1770975153596,0.002,1965.3,1964.7,0.49424313]
[1770975155734,0.002,1965.3,1964.8,1.27239413]
[1770975155917,0.002,1965.3,1964.9,0.46162327]
[1770975156106,0.002,1965.4,1964.9,0.46162327]
[1770975157333,0.49352742,1965.4,1964.7,1.27240922]
[1770975157715,1.76554951,1965.4,1964.7,1.27240922]
[1770975157912,0.49152742,1965.3,1964.6,1.73409926]
[1770975158706,0.002,1965.4,1964.7,0.46162327]
[1770975158940,1.27401352,1965.4,1964.7,0.46162327]
[1770975159139,0.002,1965.3,1964.7,0.46162327]
[1770975160031,0.002,1965.3,1964.8,1.27239413]
[1770975160917,0.002,1965.3,1964.8,1.7340174]
[1770975161318,0.002,1965.3,1964.8,1.27239413]
[1770975162538,0.002,1965.3,1964.7,0.46162327]
[1770975164648,0.002,1965.3,1964.8,1.27239413]
[1770975164811,0.002,1965.3,1964.9,0.46162327]
[1770975166936,0.002,1965.3,1965.1,0.46162327]
[1770975167135,0.002,1965.4,1965.1,0.46162327]
[1770975168921,0.002,1965.4,1965.2,1.27213515]
[1770975169115,0.002,1965.4,1965.2,1.73375842]
[1770975169433,1.40852742,1965.9,1965.3,0.46162327]
[1770975169434,0.917,1965.9,1965.3,0.46162327]
[1770975171022,0.917,1965.9,1965.4,1.27200569]
[1770975171940,1.27353475,1966.2,1965.5,0.46162327]
[1770975172143,0.002,1966.2,1965.5,0.46162327]
[1770975173047,0.002,1966.2,1965.8,1.73337014]
[1770975173247,0.002,1966.2,1965.9,0.46162327]
[1770975173749,0.49152742,1966.8,1965.9,0.46162327]
[1770975174045,0.49152742,1966.8,1965.7,0.46162327]
[1770975175143,1.27115174,1966.8,1965.9,0.46162327]
[1770975176914,5.57580023,1966.9,1965.9,0.46162327]
[1770975176915,1.76259191,1966.9,1966.0,1.73324076]
[1770975177115,1.76259191,1966.9,1966.1,0.46162327]
[1770975177343,1.76256719,1966.9,1966.1,0.46162327]
[1770975178145,0.49152742,1966.8,1966.0,1.27161749]
[1770975178346,0.49152742,1966.8,1965.7,0.46162327]
[1770975178649,0.49152742,1966.8,1965.8,0.46162327]
[1770975179018,1.76269231,1966.7,1965.9,1.27168218]
[1770975180250,0.49152742,1966.5,1965.5,1.27191385]
[1770975181369,0.4849031,1966.3,1965.3,1.27207042]
[1770975181568,0.4849031,1966.3,1965.0,0.4900438]
[1770975181770,0.4849031,1966.1,1965.0,0.001]
[1770975181982,0.4849031,1965.9,1965.0,1.27325944]
[1770975182275,0.4849031,1965.9,1965.0,0.001]
[1770975183463,0.4849031,1965.7,1965.5,0.001]
[1770975183784,1.27173046,1965.9,1965.5,0.001]
[1770975183986,1.75656809,1966.0,1965.5,0.001]
[1770975184285,1.27160558,1966.1,1965.5,0.001]
[1770975185470,1.27147478,1966.3,1965.5,0.001]
[1770975185874,0.4849031,1966.2,1965.5,0.001]
[1770975187484,1.27147478,1966.3,1965.5,0.001]
[1770975187797,5.0869459,1966.6,1965.6,2.3230438]
[1770975187798,0.002,1966.6,1965.6,2.3230438]
[1770975188082,1.27115012,1966.8,1965.6,2.3230438]
[1770975188083,1.51373097,1967.0,1965.8,0.4890438]
[1770975188281,0.24275753,1967.0,1966.0,0.4890438]
[1770975188459,0.24275753,1967.0,1966.1,0.4890438]
[1770975188864,0.24275753,1967.0,1966.3,0.4890438]
[1770975189060,0.0695878,1967.2,1966.3,0.4890438]
[1770975189268,8.23508692,1968.7,1966.2,5.48693766]
[1770975189269,0.00868384,1969.0,1967.2,0.4890438]
[1770975189480,0.00868384,1969.0,1968.0,0.50063767]
[1770975189660,0.4849031,1968.9,1967.5,6.16561425]
[1770975189853,0.4849031,1968.9,1967.6,0.4890438]
[1770975190052,1.27839707,1969.0,1967.6,0.4890438]
[1770975190907,0.4849031,1968.8,1967.3,1.27073466]
[1770975191085,0.4849031,1968.6,1967.2,1.7598571]
[1770975191274,0.4849031,1968.6,1967.3,0.4890438]
[1770975191474,1.27000254,1968.5,1967.3,1.75976349]
[1770975191877,30.4849031,1968.4,1966.9,4.28803413]
[1770975192078,30.4849031,1968.4,1966.5,5.08495438]
[1770975192079,0.4849031,1967.9,1966.6,0.4890438]
[1770975192397,1.27000254,1968.5,1966.3,7.78955962]
[1770975192398,3.4169031,1967.8,1966.4,1.27132027]
[1770975192557,3.4169031,1967.8,1966.4,1.76036407]
[1770975193052,0.4849031,1967.8,1966.5,0.4890438]
[1770975193279,0.526,1967.7,1966.5,0.4890438]
[1770975194389,1.27058345,1967.6,1966.6,1.27122953]
[1770975194906,1.2703252,1968.0,1966.7,0.4890438]
[1770975195252,5.08059593,1968.3,1966.9,0.4890438]
[1770975195253,5.08055789,1968.3,1966.9,0.4890438]
[1770975196278,1.27013158,1968.3,1967.0,1.27097102]
[1770975196479,1.27013158,1968.3,1967.0,1.76001482]
[1770975196685,1.27013158,1968.3,1967.1,0.4890438]
[1770975196888,0.002,1967.5,1967.1,0.4890438]
[1770975197087,1.27013158,1968.3,1967.1,0.4890438]
[1770975198084,1.22013158,1968.3,1967.1,0.4890438]
[1770975198287,1.22013158,1968.3,1967.2,1.2708418]
[1770975198486,1.70503468,1968.3,1967.2,1.2708418]
[1770975198886,1.22013158,1968.3,1967.3,0.4890438]
[1770975199667,1.22013158,1968.3,1967.2,1.2708418]
[1770975199862,1.22013158,1968.3,1967.2,1.7598856]
[1770975200768,3.33209811,1968.4,1967.2,1.7598856]
[1770975200992,0.4849031,1968.2,1966.8,1.76014406]
[1770975202093,0.4349031,1968.2,1966.8,1.76014406]
[1770975202487,1.27026065,1968.1,1966.8,1.76014406]
[1770975203164,0.4849031,1968.0,1966.8,1.76013534]
[1770975203369,8.05564247,1967.7,1966.7,1.27113925]
[1770975203592,10.11664247,1967.7,1966.5,5.08497411]
[1770975203899,10.60154557,1967.7,1966.5,5.08497411]
[1770975204197,10.11664247,1967.7,1966.5,5.57401791]
[1770975204399,1.27038975,1967.9,1966.7,1.27116489]
[1770975204580,1.27038975,1967.9,1966.8,0.4890438]
[1770975205299,1.75529285,1967.9,1966.7,1.27116489]
[1770975207287,8.05564247,1967.4,1966.5,1.27124353]
[1770975207486,10.11864247,1967.4,1966.4,1.27131322]
[1770975207890,2.063,1967.5,1966.4,1.76035702]
[1770975208884,2.5479031,1967.5,1966.4,1.27131322]
[1770975209383,1.27071261,1967.4,1966.4,1.27131322]
[1770975209786,1.27071261,1967.4,1966.8,0.001]
[1770975211381,1.7465204,1967.4,1966.8,0.001]
[1770975211924,1.27071261,1967.4,1966.8,0.001]
[1770975215121,1.7465204,1967.4,1966.8,0.001]
[1770975215421,0.48744203,1967.3,1966.8,0.001]
[1770975215797,1.2708418,1967.2,1966.8,0.001]
[1770975218445,0.48744203,1967.8,1966.8,0.4625072]
[1770975218750,0.48744203,1967.9,1966.9,1.80270756]
[1770975218912,0.48744203,1967.7,1966.8,1.80370756]
[1770975219104,0.48744203,1967.7,1966.8,0.001]
[1770975220337,1.27058345,1967.6,1966.8,1.27210026]
[1770975220738,0.48744203,1967.4,1966.8,0.001]
[1770975221934,2.065,1967.3,1966.8,0.001]
[1770975222510,1.2708418,1967.2,1966.8,0.001]
[1770975223034,1.2708418,1967.2,1966.9,0.001]
[1770975224440,9.32648427,1967.2,1966.9,0.001]
[1770975225062,9.8139263,1967.2,1966.9,0.001]
[1770975225248,9.8139263,1967.2,1966.8,0.001]
[1770975225762,0.48744203,1967.1,1966.8,0.001]
[1770975226125,0.48744203,1967.1,1966.1,1.27151668]
[1770975226559,0.48744203,1967.1,1966.0,5.08621128]
[1770975226560,1.27097102,1967.0,1966.0,5.08621128]
[1770975226742,2.072,1966.9,1966.0,5.08621128]
[1770975226946,2.072,1966.9,1966.0,1.27161749]
[1770975228832,1.75821923,1967.4,1966.1,0.4615072]
[1770975229031,7.64157994,1967.3,1966.1,3.16556854]
[1770975229232,0.48744203,1967.1,1966.1,3.16556854]
[1770975229541,0.48744203,1967.1,1966.1,0.4615072]
[1770975230226,0.48744203,1967.1,1966.0,3.97567883]
[1770975230428,8.5430845,1966.9,1966.0,1.27161749]
[1770975230634,2.071,1966.8,1966.0,1.27161749]
[1770975231033,1.27116489,1966.7,1966.0,1.27161749]
[1770975231235,3.34213714,1966.8,1966.0,1.73312469]
[1770975231630,1.27113714,1966.8,1966.1,0.4615072]
[1770975232452,13.13913229,1967.2,1966.1,0.4615072]
[1770975232658,3.34094398,1967.1,1966.1,0.4615072]
[1770975233062,3.34094398,1967.1,1966.2,1.27148814]
[1770975233264,3.34094398,1967.1,1966.3,0.4615072]
[1770975234569,2.07,1967.1,1966.3,0.4615072]
[1770975234759,0.916,1967.4,1966.5,0.4615072]
[1770975235144,0.916,1967.4,1966.7,0.4615072]
[1770975235345,1.27048564,1967.8,1966.7,0.4615072]
[1770975235664,3.34048564,1967.8,1966.7,0.4615072]
[1770975236641,0.002,1966.8,1966.7,0.4615072]
[1770975236841,3.34048564,1967.8,1966.7,0.4615072]
[1770975237038,1.27048564,1967.8,1966.7,8.05564247]
[1770975237382,5.08118313,1968.1,1967.0,0.4615072]
[1770975237674,0.48744203,1967.9,1967.0,1.823]
[1770975238238,0.48744203,1967.9,1966.9,1.27103563]
[1770975238435,8.05564247,1968.0,1966.9,1.27103563]
[1770975238637,3.33926065,1968.1,1967.1,0.4615072]
[1770975238840,0.48744203,1968.0,1966.9,1.73254283]
[1770975239238,1.27038975,1967.9,1967.0,0.4615072]
[1770975239476,1.27037415,1968.0,1967.0,0.4615072]
[1770975240359,1.27030863,1968.1,1967.0,0.4615072]
[1770975240562,1.27030863,1968.1,1967.1,0.46290068]
[1770975241262,2.069,1968.2,1967.3,0.46290068]
[1770975241476,2.069,1968.2,1967.5,0.46290068]
[1770975241646,3.33920494,1968.2,1967.5,0.46290068]
[1770975242979,0.46924633,1968.1,1967.2,1.73374248]
[1770975243182,1.2703252,1968.0,1967.2,1.73374248]
[1770975244043,1.2703252,1968.0,1967.2,0.46290068]
[1770975244245,0.46924633,1967.9,1966.9,1.73389743]
[1770975244844,2.069,1967.8,1967.0,0.46290068]
[1770975246078,2.069,1967.8,1967.1,1.27090641]
[1770975246244,3.33945986,1967.8,1967.1,1.27090641]
[1770975246552,2.069,1967.8,1967.1,1.27090641]
[1770975247143,2.069,1967.8,1967.1,1.73380709]
[1770975247982,3.33945791,1967.8,1967.1,1.73380709]
[1770975248188,2.069,1967.8,1967.1,1.73380709]
[1770975248794,0.002,1967.7,1967.1,1.73380709]
[1770975249012,0.002,1967.7,1966.8,0.46290068]
[1770975249187,0.002,1967.7,1966.8,3.55295739]
[1770975249361,0.002,1967.7,1966.9,0.46290068]
[1770975250583,1.27046786,1967.8,1967.0,1.27097102]
[1770975251385,1.27046786,1967.8,1966.9,1.73388994]
[1770975251792,1.73971419,1967.8,1966.9,1.27098926]
[1770975252311,0.46924633,1967.6,1966.5,4.00018961]
[1770975252594,1.2708418,1967.2,1966.4,1.2713522]
[1770975252886,1.2708418,1967.2,1966.4,1.73425288]
[1770975253078,3.3337233,1967.4,1966.5,0.46290068]
[1770975253455,2.063,1967.4,1966.5,0.46290068]
[1770975253784,3.33372045,1967.4,1966.5,0.46290068]
[1770975254802,3.33372045,1967.4,1966.6,1.73413021]
[1770975255172,0.46924633,1967.9,1966.7,0.46290068]
[1770975255377,3.33345431,1967.8,1966.8,0.46290068]
[1770975256177,0.916,1968.0,1966.8,0.46290068]
[1770975256383,2.18638794,1968.0,1966.8,0.46290068]
[1770975256605,2.18638794,1968.0,1966.9,0.46290068]
[1770975256781,2.18638794,1968.0,1967.1,0.46290068]
[1770975258004,5.08099534,1968.2,1967.1,0.46290068]
[1770975258825,7.14269248,1968.3,1967.3,0.46290068]
[1770975259112,3.33213158,1968.3,1967.3,0.46290068]
[1770975259916,3.80137791,1968.3,1967.3,0.46290068]
[1770975260115,3.80137791,1968.3,1967.3,2.27890068]
[1770975260316,3.80137791,1968.3,1967.3,0.46290068]
[1770975260687,3.33213158,1968.3,1967.3,0.46290068]
[1770975260887,3.33213158,1968.3,1967.4,1.27071261]
[1770975261521,0.002,1968.1,1967.4,1.73361329]
[1770975262134,0.002,1968.1,1967.5,0.46290068]
[1770975262818,0.002,1968.1,1967.6,1.27058345]
[1770975263030,0.002,1968.1,1967.6,1.73348413]
[1770975264122,0.002,1968.1,1967.6,0.46290068]
[1770975264325,0.002,1968.1,1967.5,1.27060938]
[1770975264918,0.002,1968.1,1967.4,3.08668467]
[1770975265122,0.002,1968.1,1967.2,1.2707882]
[1770975265329,0.47124633,1968.1,1967.2,3.0867882]
[1770975266199,0.47124633,1968.1,1967.2,1.2707882]
[1770975266400,0.47124633,1968.1,1967.2,3.0857882]
[1770975267224,1.2703252,1968.0,1967.2,1.2707882]
[1770975267435,0.46924633,1967.9,1967.0,1.27092563]
[1770975267614,0.46924633,1967.7,1966.9,0.001]
[1770975267932,2.057,1967.8,1967.0,0.46290068]
[1770975269215,2.057,1967.8,1967.1,1.27090641]
[1770975269532,3.3274598,1967.8,1967.0,1.27091961]
[1770975269926,3.79670613,1967.8,1967.0,1.27091961]
[1770975270450,3.79670613,1967.8,1966.9,1.27198272]
[1770975272646,3.79670613,1967.8,1966.9,0.001]
[1770975273114,0.49910293,1967.7,1966.9,0.001]
[1770975273307,1.76968638,1967.6,1966.9,0.001]
[1770975273709,1.27058345,1967.6,1966.9,0.001]
[1770975273908,1.27058345,1967.6,1967.1,0.001]
[1770975273909,0.49910293,1967.5,1967.1,0.001]
[1770975274446,0.49910293,1967.4,1967.1,0.001]
[1770975274608,0.49910293,1967.2,1966.9,0.001]
[1770975275348,1.27090641,1967.1,1966.9,0.001]
[1770975275660,0.45704883,1967.0,1966.2,0.001]
[1770975276013,0.45704883,1967.0,1966.2,1.2724856]
[1770975277016,0.45704883,1967.0,1966.2,0.001]
[1770975277531,0.45704883,1966.8,1966.2,0.001]
[1770975278124,0.45704883,1966.7,1966.2,0.001]
[1770975279118,0.45704883,1966.5,1965.6,0.001]
[1770975279451,0.45704883,1966.3,1965.6,0.001]
[1770975279636,0.45704883,1966.2,1965.6,0.001]
[1770975281251,2.058,1966.3,1965.6,0.001]
[1770975281565,0.45704883,1966.1,1965.6,0.001]
[1770975283424,1.72866632,1966.0,1965.6,0.001]
[1770975283633,1.27159095,1966.1,1965.6,0.001]
[1770975283842,1.27147579,1966.3,1965.6,0.001]
[1770975284053,3.33247579,1966.3,1965.6,0.4918171]
[1770975285445,3.33247579,1966.3,1965.7,1.27181156]
[1770975286042,2.061,1966.3,1965.7,1.27181156]
[1770975286244,3.33242707,1966.3,1965.7,1.76262866]
[1770975286863,3.33242707,1966.3,1965.7,0.001]
[1770975287062,2.061,1966.3,1965.7,0.001]
[1770975287261,14.72364972,1966.6,1965.7,0.001]
[1770975287262,1.27133633,1966.5,1965.7,0.4918171]
[1770975287753,1.27133633,1966.5,1965.8,1.27174687]
[1770975288133,6.0011767,1966.6,1965.9,0.4908171]
[1770975288134,2.1872436,1966.6,1965.9,0.4908171]
[1770975288343,2.1872436,1966.6,1965.7,1.27280434]
[1770975288564,2.64429243,1966.6,1965.7,1.27280434]
[1770975288839,0.45704883,1966.5,1965.7,0.001]
[1770975289045,0.45704883,1966.5,1965.7,1.27279447]
[1770975289231,2.18723769,1966.6,1965.8,0.4908171]
[1770975289429,0.916,1966.6,1965.8,0.4908171]
[1770975289830,0.916,1966.6,1966.0,0.4908171]
[1770975291535,2.18724774,1966.6,1966.0,0.4908171]
[1770975291860,2.18724774,1966.6,1965.7,0.001]
[1770975291861,1.27135882,1966.4,1965.7,0.001]
[1770975293967,0.45704883,1966.3,1965.7,0.001]
[1770975294169,2.06,1966.2,1965.7,0.001]
[1770975294466,9.17958609,1966.1,1965.5,0.001]
[1770975295769,2.06,1966.2,1965.3,1.76387135]
[1770975295967,1.72860165,1966.1,1965.3,0.001]
[1770975296482,1.72860165,1966.1,1965.3,1.2730523]
[1770975296781,5.08468882,1966.7,1965.3,1.2730523]
[1770975296782,1.36929805,1966.8,1965.4,0.4908171]
[1770975296941,0.002,1966.8,1965.7,0.4908171]
[1770975297447,1.27310034,1966.8,1965.7,0.4908171]
[1770975297664,0.002,1966.8,1965.7,0.4908171]
[1770975297867,0.002,1966.8,1965.9,0.4908171]
[1770975299948,0.002,1966.8,1966.1,0.4908171]
[1770975301457,0.002,1966.8,1966.0,1.27161749]
[1770975301458,0.002,1966.3,1966.0,1.27161749]
[1770975301657,0.002,1966.3,1966.0,0.45391295]
[1770975302082,0.002,1966.4,1966.1,1.72546577]
[1770975303083,0.002,1966.4,1966.1,1.27155282]
[1770975303654,0.002,1966.4,1966.1,1.72546577]
[1770975304454,0.002,1966.4,1966.2,0.45391295]
[1770975305391,0.002,1966.4,1966.1,1.27155282]
[1770975305895,0.0006376,1966.4,1966.1,1.27155282]
[1770975306273,0.0006376,1966.4,1966.0,5.08621128]
[1770975306875,0.0006376,1966.4,1966.1,0.45391295]
[1770975307191,8.06180377,1966.4,1965.6,1.27187627]
[1770975307605,8.53128622,1966.4,1965.5,1.27188899]
[1770975307810,8.06180377,1966.4,1965.5,1.27188899]
[1770975307968,0.0006376,1966.4,1965.5,1.72580194]
[1770975308169,0.46948245,1966.3,1965.4,1.27295715]
[1770975308473,8.06116617,1966.1,1965.4,0.001]
[1770975309069,0.46948245,1966.0,1965.4,0.001]
[1770975310201,8.97816617,1966.1,1965.4,0.001]
[1770975310497,1.27161749,1966.0,1965.4,0.001]
[1770975310695,10.24974799,1966.1,1965.4,0.001]
[1770975311300,0.917,1966.1,1965.4,0.001]
[1770975311471,2.18857367,1966.1,1965.4,0.001]
[1770975311804,9.33316483,1966.4,1965.4,0.45491295]
[1770975311986,9.80264728,1966.4,1965.4,0.45491295]
[1770975312399,1.27199908,1966.4,1965.4,0.45491295]
[1770975312617,1.27199908,1966.4,1965.5,1.72585393]
[1770975312901,0.46948245,1966.3,1965.4,1.27295208]
[1770975313092,8.06116617,1966.1,1965.4,1.27295208]
[1770975313293,8.06116617,1966.1,1965.4,0.001]
[1770975313294,8.06116617,1965.9,1965.4,0.001]
[1770975313474,2.057,1965.9,1965.4,0.001]
[1770975313804,2.057,1965.9,1965.5,0.001]
[1770975315873,3.32868751,1965.9,1965.5,0.001]
[1770975316073,2.057,1965.9,1965.5,0.001]
[1770975317186,2.054,1966.2,1965.5,0.001]
[1770975317904,2.054,1966.3,1965.5,0.45491295]
[1770975319503,3.32547347,1966.3,1965.6,1.27187627]
[1770975322027,0.0006376,1966.4,1965.7,0.45391295]
[1770975323885,0.0006376,1966.4,1965.9,0.45391295]
[1770975326422,0.0006376,1966.4,1966.0,1.27161749]
[1770975326715,0.002,1966.3,1966.0,1.27161749]
[1770975327420,0.002,1966.3,1966.0,1.72553044]
[1770975328923,0.002,1966.3,1966.0,1.27161749]
[1770975330821,0.002,1966.3,1965.8,1.27274687]
[1770975332817,0.002,1966.3,1965.8,0.001]
[1770975336300,0.48610201,1966.2,1965.5,0.001]
[1770975336996,0.48610201,1966.0,1965.5,0.001]
[1770975338010,1.27155282,1966.1,1965.5,0.001]
[1770975338204,1.75765483,1966.1,1965.5,0.001]
[1770975338427,0.002,1966.3,1965.5,0.49235784]
[1770975338644,1.27342679,1966.3,1965.5,0.49235784]
[1770975338819,1.27342679,1966.3,1965.6,0.001]
[1770975339124,1.27342679,1966.3,1965.6,1.27287627]
[1770975340029,0.002,1966.3,1965.6,1.27287627]
[1770975340630,0.48810201,1966.3,1965.6,1.27287627]
[1770975341434,1.27148814,1966.2,1965.6,0.001]
[1770975341637,1.7595731,1966.3,1965.6,0.001]
[1770975342036,1.75952715,1966.3,1965.6,0.001]
[1770975342356,0.002,1966.3,1965.6,0.001]
[1770975342564,1.27342444,1966.3,1965.6,0.001]
[1770975343052,1.75952645,1966.3,1965.6,0.001]
[1770975343233,0.48610201,1966.2,1965.6,0.001]
[1770975343432,1.75760246,1966.2,1965.6,0.001]
[1770975345627,0.48610201,1966.1,1965.5,0.001]
[1770975346958,8.54726818,1965.9,1965.5,0.001]
[1770975347122,2.51410201,1965.9,1965.5,0.001]
[1770975347520,2.51410201,1965.9,1965.4,0.001]
[1770975347823,0.48610201,1965.7,1965.0,0.001]
[1770975348054,0.48610201,1965.6,1965.0,0.001]
[1770975348721,0.48610201,1965.6,1965.0,1.27326393]
[1770975348919,2.18874687,1965.8,1965.0,1.76462177]
[1770975349460,2.03,1965.7,1965.0,1.76462177]
[1770975349619,1.27187627,1965.6,1965.0,1.27325452]
[1770975350318,1.27187627,1965.6,1964.9,5.09031371]
[1770975350319,8.54726818,1965.4,1964.9,0.001]
[1770975350539,0.48610201,1965.4,1964.9,0.001]
[1770975351121,0.48610201,1965.4,1965.1,0.001]
[1770975351353,0.48610201,1965.4,1964.9,0.001]
[1770975351556,0.48610201,1965.4,1964.8,0.001]
[1770975351725,0.48610201,1965.2,1965.0,0.001]
[1770975351925,10.57626818,1965.2,1964.8,0.001]
[1770975352146,0.48610201,1965.1,1964.5,0.001]
[1770975353625,8.06116617,1964.9,1964.2,0.001]
[1770975353825,8.54726818,1964.9,1964.2,1.27377952]
[1770975354038,2.029,1964.8,1964.2,1.27377952]
[1770975354248,2.029,1964.8,1964.2,0.001]
[1770975354452,8.06116617,1964.6,1964.1,0.001]
[1770975354655,2.029,1964.8,1964.1,1.27384672]
[1770975354954,2.029,1964.8,1964.1,1.76520456]
[1770975355330,2.029,1964.8,1964.1,1.7651989]
[1770975355647,1.27245889,1964.7,1964.1,0.001]
[1770975357253,2.03,1964.6,1963.9,0.49235784]
[1770975357848,14.55390274,1964.8,1963.9,0.49235784]
[1770975357849,2.03,1964.5,1964.1,0.49135784]
[1770975358034,2.03,1964.5,1963.9,1.76528316]
[1770975358234,2.03,1964.5,1963.9,0.001]
[1770975358441,2.03,1964.5,1963.9,1.27397207]
[1770975358828,2.03,1964.5,1963.9,0.001]
[1770975359449,8.06116617,1964.3,1963.8,0.001]
[1770975359642,2.51610201,1964.5,1963.8,1.27402712]
[1770975359643,2.03,1964.5,1963.8,1.27402712]
[1770975359861,1.27265322,1964.4,1963.8,0.001]
[1770975360060,2.032,1964.3,1963.8,0.49235784]
[1770975361430,0.917,1964.6,1963.8,0.49235784]
[1770975361831,2.18952724,1964.6,1963.9,1.76522295]
[1770975362240,10.25069341,1964.6,1963.7,1.76633006]
[1770975362461,2.031,1964.5,1963.8,0.49224572]
[1770975363765,2.031,1964.5,1963.9,0.001]
[1770975363940,3.30364082,1964.5,1963.9,1.27397723]
[1770975364557,2.031,1964.5,1963.9,1.27397723]
[1770975364760,2.031,1964.5,1963.9,1.76622295]
[1770975365060,2.031,1964.5,1964.0,0.49224572]
[1770975365835,2.031,1964.5,1964.1,1.27284761]
[1770975367765,0.917,1964.7,1964.2,0.49224572]
[1770975367965,0.917,1964.7,1964.3,1.27271801]
[1770975368970,0.917,1964.7,1964.3,1.76496373]
[1770975369465,0.002,1965.0,1964.4,0.49224572]
[1770975369869,0.002,1965.0,1964.5,1.27258844]
[1770975370068,0.002,1965.0,1964.5,1.76483416]
[1770975370668,0.002,1965.0,1964.6,0.49224572]
[1770975371042,0.002,1965.1,1964.7,0.49224572]
[1770975372064,0.002,1965.1,1964.8,1.76463985]
[1770975372262,0.002,1965.1,1964.9,0.49224572]
[1770975374377,0.917,1965.6,1965.0,1.27226463]
[1770975374780,0.917,1965.6,1965.1,0.49224572]
[1770975375384,1.755,1965.8,1965.1,0.49224572]
[1770975375905,3.02674865,1965.8,1965.1,0.49224572]
[1770975376069,3.49830005,1965.8,1965.0,1.27226463]
[1770975376269,0.002,1965.5,1965.0,1.27226463]
[1770975376496,0.002,1965.5,1964.9,1.7645751]
[1770975376658,0.002,1965.5,1964.8,1.2723416]
[1770975378698,0.002,1965.5,1964.8,1.76458732]
[1770975379963,0.002,1965.5,1964.9,0.49224572]
[1770975380675,0.002,1965.5,1965.0,1.27226463]
[1770975380871,0.002,1965.5,1965.0,1.76451035]